fUST/lending_fUST_20250801
["ID","MTS","AMOUNT","RATE_DAILY","PERIOD"]
[376541325,1754013041594,-500.0,0.00022411,2]
[376541326,1754013041603,-500.0,0.00022411,2]
[376541327,1754013041612,-500.0,0.00022411,2]
[376541328,1754013041621,-500.0,0.00022411,2]
[376541329,1754013041630,-2819.63,0.00022412,2]
[376541330,1754013041640,-460.0,0.00022412,2]
[376541331,1754013041649,-523.84,0.00022412,2]
[376541332,1754013041658,-460.0,0.00022412,2]
[376541333,1754013041668,-373.38525603,0.00022412,2]
[376541334,1754013041676,-2889.2,0.00022412,2]
[376541335,1754013041685,-460.0,0.00022412,2]
[376541336,1754013041694,-479.84,0.00022412,2]
[376541337,1754013041703,-460.0,0.00022412,2]
[376541338,1754013041712,-460.0,0.00022412,2]
[376541339,1754013041722,-6096.72,0.00022412,2]
[376541340,1754013041731,-647.09,0.00022412,2]
[376541341,1754013041740,-460.0,0.00022412,2]
[376541342,1754013041749,-460.0,0.00022412,2]
[376541343,1754013041758,-565.34,0.00022412,2]
[376541344,1754013041767,-785.43,0.00022412,2]
[376541345,1754013041776,-460.0,0.00022412,2]
[376541346,1754013041785,-460.0,0.00022412,2]
[376541347,1754013041794,-460.0,0.00022412,2]
[376541348,1754013041804,-460.0,0.00022412,2]
[376541349,1754013041815,-460.0,0.00022422,2]
[376541350,1754013041826,-460.0,0.00022422,2]
[376541351,1754013041836,-460.0,0.00022422,2]
[376541352,1754013041845,-460.0,0.00022422,2]
[376541353,1754013041855,-460.0,0.00022422,2]
[376541354,1754013041866,-460.0,0.00022422,2]
[376541355,1754013041875,-460.0,0.00022422,2]
[376541356,1754013041885,-460.0,0.00022422,2]
[376541357,1754013041895,-460.0,0.00022422,2]
[376541358,1754013041904,-460.0,0.00022422,2]
[376541359,1754013041914,-175.59164739,0.00022422,2]
[376541360,1754013041923,-461.37606505,0.00022422,2]
[376541361,1754013041932,-460.0,0.00022422,2]
[376541362,1754013041942,-460.0,0.00022422,2]
[376541363,1754013041951,-479.56808186,0.00022422,2]
[376541364,1754013041963,-460.0,0.00022422,2]
[376541365,1754013041972,-460.0,0.00022422,2]
[376541366,1754013041981,-460.0,0.00022422,2]
[376541367,1754013041991,-460.0,0.00022422,2]
[376541368,1754013042001,-460.0,0.00022422,2]
[376541369,1754013042011,-460.0,0.00022422,2]
[376541370,1754013042020,-460.0,0.00022422,2]
[376541371,1754013042029,-460.0,0.00022422,2]
[376541372,1754013042038,-468.45928986,0.00022422,2]
[376541373,1754013042048,-460.0,0.00022422,2]
[376541374,1754013042057,-460.0,0.00022422,2]
[376541375,1754013042066,-500.92,0.00022422,2]
[376541376,1754013042075,-463.38001406,0.00022422,2]
[376541377,1754013042085,-460.0,0.00022422,2]
[376541378,1754013042094,-460.0,0.00022422,2]
[376541379,1754013042103,-460.0,0.00022422,2]
[376541380,1754013042113,-526.88,0.00022422,2]
[376541381,1754013042122,-648.08,0.00022422,2]
[376541382,1754013042131,-945.42,0.00022422,2]
[376541383,1754013042140,-460.0,0.00022422,2]
[376541384,1754013042149,-460.0,0.00022422,2]
[376541385,1754013042158,-460.0,0.00022422,2]
[376541386,1754013042168,-460.0,0.00022422,2]
[376541387,1754013042177,-460.0,0.00022422,2]
[376541388,1754013042186,-286.42984297,0.00022422,2]
[376541389,1754013042195,-460.0,0.00022422,2]
[376541390,1754013042205,-639.16,0.00022422,2]
[376541391,1754013042214,-460.0,0.00022422,2]
[376541392,1754013042223,-460.0,0.00022422,2]
[376541393,1754013042232,-561.38,0.00022422,2]
[376541394,1754013042242,-464.37466005,0.00022422,2]
[376541395,1754013042251,-460.0,0.00022422,2]
[376541396,1754013042260,-620.29,0.00022422,2]
[376541397,1754013042269,-747.27,0.00022422,2]
[376541398,1754013042278,-464.61848236,0.00022422,2]
[376541399,1754013042287,-460.0,0.00022422,2]
[376541400,1754013042296,-460.0,0.00022422,2]
[376541401,1754013042305,-460.0,0.00022422,2]
[376541402,1754013042314,-460.0,0.00022422,2]
[376541403,1754013042323,-463.52896865,0.00022422,2]
[376541404,1754013042332,-596.1,0.00022422,2]
[376541405,1754013042341,-460.0,0.00022422,2]
[376541406,1754013042350,-557.62,0.00022422,2]
[376541407,1754013042360,-460.0,0.00022422,2]
[376541408,1754013042369,-467.76470819,0.00022422,2]
[376541409,1754013042378,-460.0,0.00022432,2]
[376541410,1754013042387,-2028.54,0.00022432,2]
[376541411,1754013042396,-200.0,0.00022438,15]
[376541412,1754013042406,-200.0,0.00022438,15]
[376541413,1754013042415,-200.0,0.00022438,15]
[376541414,1754013042424,-200.0,0.00022438,15]
[376541415,1754013042433,-200.0,0.00022438,15]
[376541416,1754013042442,-2137.12727829,0.00022447,2]
[376541417,1754013042451,-370.54,0.00022452,3]
[376541418,1754013042462,-185.27,0.00022452,3]
[376541419,1754013042472,-555.82,0.00022452,3]
[376541420,1754013042481,-460.0,0.00022462,2]
[376541421,1754013042490,-476.39,0.00022462,2]
[376541422,1754013042500,-1038.79,0.00022462,2]
[376541423,1754013042510,-1794.93,0.00022462,2]
[376541424,1754013042520,-460.0,0.00022462,2]
[376541425,1754013042529,-468.1660897,0.00022462,2]
[376541426,1754013042537,-159.34005641,0.00022462,2]
[376541427,1754013042547,-460.0,0.00022462,2]
[376541428,1754013042556,-460.0,0.00022462,2]
[376541429,1754013042565,-702.31,0.00022462,2]
[376541430,1754013042574,-608.56,0.00022462,2]
[376541431,1754013042583,-1381.67,0.00022463,2]
[376541432,1754013042593,-463.11074409,0.00022463,2]
[376541433,1754013042602,-652.77,0.00022463,2]
[376541434,1754013042611,-460.0,0.00022463,2]
[376541435,1754013042620,-659.67,0.00022463,2]
[376541436,1754013042629,-460.0,0.00022464,2]
[376541437,1754013042638,-460.0,0.00022464,2]
[376541438,1754013042648,-460.0,0.00022464,2]
[376541439,1754013042657,-460.0,0.00022464,2]
[376541440,1754013042666,-6295.89,0.00022464,2]
[376541441,1754013042676,-1149.39,0.00022464,2]
[376541442,1754013042685,-500.0,0.00022473,2]
[376541443,1754013042694,-500.0,0.00022473,2]
[376541444,1754013042702,-500.63111791,0.00022473,2]
[376541445,1754013042715,-500.0,0.00022473,2]
[376541446,1754013042724,-501.67251,0.00022473,2]
[376541447,1754013042734,-500.0,0.00022473,2]
[376541448,1754013042745,-501.52955145,0.00022473,2]
[376541449,1754013042754,-501.36131886,0.00022473,2]
[376541450,1754013042764,-502.99738999,0.00022473,2]
[376541451,1754013042773,-500.0,0.00022473,2]
[376541452,1754013042782,-500.84478458,0.00022473,2]
[376541453,1754013042791,-500.75685453,0.00022473,2]
[376541454,1754013042801,-500.97003299,0.00022473,2]
[376541455,1754013042810,-415.3755479,0.00022473,2]
[376541456,1754013042823,-168.330942,0.00022473,2]
[376541457,1754013042833,-500.0,0.00022473,2]
[376541458,1754013042842,-500.0,0.00022473,2]
[376541459,1754013042851,-500.0,0.00022473,2]
[376541460,1754013042862,-500.0,0.00022473,2]
[376541461,1754013042871,-500.0,0.00022473,2]
[376541462,1754013042880,-500.0,0.00022473,2]
[376541463,1754013042891,-500.0,0.00022473,2]
[376541464,1754013042900,-500.0,0.00022473,2]
[376541465,1754013042909,-500.0,0.00022473,2]
[376541466,1754013042919,-500.0,0.00022473,2]
[376541467,1754013042928,-500.0,0.00022473,2]
[376541468,1754013042937,-500.0,0.00022473,2]
[376541469,1754013042946,-620.06763081,0.00022473,2]
[376541470,1754013042957,-500.0,0.00022473,2]
[376541471,1754013042968,-500.0,0.00022473,2]
[376541472,1754013042978,-300.0,0.00022491,2]
[376541473,1754013042987,-934.7890073,0.00022536,2]
[376541475,1754013042996,-460.0,0.00022547,2]
[376541477,1754013043005,-460.0,0.00022547,2]
[376541478,1754013043015,-460.0,0.00022547,2]
[376541479,1754013043024,-460.0,0.00022547,2]
[376541480,1754013043033,-460.0,0.00022547,2]
[376541481,1754013043042,-460.0,0.00022547,2]
[376541483,1754013043051,-460.0,0.00022547,2]
[376541485,1754013043060,-460.0,0.00022547,2]
[376541486,1754013043070,-463.7842024,0.00022547,2]
[376541488,1754013043079,-464.5342724,0.00022547,2]
[376541490,1754013043088,-460.0,0.00022547,2]
[376541493,1754013043098,-460.0,0.00022547,2]
[376541495,1754013043107,-592.37,0.00022581,2]
[376541497,1754013043116,-13134.45642284,0.00022585,2]
[376541499,1754013043126,-7892.15,0.000226,7]
[376541501,1754013043135,-1600.32865514,0.00022643,2]
[376541504,1754013043144,-1604.02,0.00022669,2]
[376541506,1754013043153,-466.98293315,0.00022676,2]
[376541508,1754013043163,-460.0,0.00022676,2]
[376541510,1754013043172,-500.0,0.00022679,2]
[376541512,1754013043180,-460.0,0.00022685,2]
[376541514,1754013043189,-542.9,0.00022685,2]
[376541516,1754013043198,-2204.99,0.00022685,2]
[376541517,1754013043212,-2819.63,0.00022686,2]
[376541518,1754013043221,-460.0,0.00022686,2]
[376541519,1754013043230,-523.84,0.00022686,2]
[376541523,1754013043239,-460.0,0.00022686,2]
[376541524,1754013043248,-2889.2,0.00022686,2]
[376541525,1754013043256,-460.0,0.00022686,2]
[376541526,1754013043266,-479.84,0.00022686,2]
[376541527,1754013043275,-460.0,0.00022686,2]
[376541529,1754013043285,-460.0,0.00022686,2]
[376541532,1754013043294,-6096.72,0.00022686,2]
[376541534,1754013043303,-647.09,0.00022686,2]
[376541536,1754013043312,-460.0,0.00022686,2]
[376541538,1754013043321,-460.0,0.00022686,2]
[376541539,1754013043330,-565.34,0.00022686,2]
[376541540,1754013043339,-785.43,0.00022686,2]
[376541541,1754013043348,-465.84564699,0.00022686,2]
[376541542,1754013043357,-460.0,0.00022686,2]
[376541543,1754013043366,-460.0,0.00022686,2]
[376541544,1754013043375,-460.0,0.00022686,2]
[376541545,1754013043384,-460.0,0.00022696,2]
[376541546,1754013043393,-460.0,0.00022696,2]
[376541547,1754013043403,-460.0,0.00022696,2]
[376541548,1754013043412,-460.0,0.00022696,2]
[376541549,1754013043421,-460.0,0.00022696,2]
[376541550,1754013043430,-460.0,0.00022696,2]
[376541552,1754013043438,-460.0,0.00022696,2]
[376541554,1754013043447,-460.0,0.00022696,2]
[376541556,1754013043458,-460.0,0.00022696,2]
[376541558,1754013043467,-460.0,0.00022696,2]
[376541560,1754013043476,-460.0,0.00022696,2]
[376541562,1754013043485,-460.0,0.00022696,2]
[376541575,1754013043591,-460.0,0.00022696,2]
[376541577,1754013043601,-460.0,0.00022696,2]
[376541579,1754013043610,-460.0,0.00022696,2]
[376541581,1754013043619,-546.90795001,0.00022696,2]
[376541583,1754013043628,-460.0,0.00022696,2]
[376541585,1754013043637,-460.0,0.00022696,2]
[376541587,1754013043646,-460.0,0.00022696,2]
[376541589,1754013043655,-460.0,0.00022696,2]
[376541591,1754013043665,-460.0,0.00022696,2]
[376541593,1754013043674,-469.05431311,0.00022696,2]
[376541595,1754013043683,-500.92,0.00022696,2]
[376541597,1754013043693,-460.0,0.00022696,2]
[376541599,1754013043702,-395.98517676,0.00022696,2]
[376541600,1754013043714,-460.0,0.00022696,2]
[376541602,1754013043724,-526.88,0.00022696,2]
[376541604,1754013043733,-648.08,0.00022696,2]
[376541606,1754013043743,-945.42,0.00022696,2]
[376541609,1754013043752,-460.0,0.00022696,2]
[376541612,1754013043761,-460.0,0.00022696,2]
[376541615,1754013043771,-460.0,0.00022696,2]
[376541617,1754013043781,-460.0,0.00022696,2]
[376541619,1754013043790,-460.0,0.00022696,2]
[376541621,1754013043799,-460.0,0.00022696,2]
[376541624,1754013043809,-639.16,0.00022696,2]
[376541627,1754013043823,-460.0,0.00022696,2]
[376541630,1754013043833,-465.97323121,0.00022696,2]
[376541633,1754013043842,-561.38,0.00022696,2]
[376541635,1754013043851,-460.0,0.00022696,2]
[376541637,1754013043863,-620.29,0.00022696,2]
[376541640,1754013043872,-747.27,0.00022696,2]
[376541643,1754013043882,-460.0,0.00022696,2]
[376541644,1754013043892,-460.0,0.00022696,2]
[376541646,1754013043901,-460.0,0.00022696,2]
[376541648,1754013043910,-460.0,0.00022696,2]
[376541650,1754013043919,-596.1,0.00022696,2]
[376541652,1754013043928,-460.0,0.00022696,2]
[376541654,1754013043937,-557.62,0.00022696,2]
[376541656,1754013043946,-460.0,0.00022696,2]
[376541658,1754013043955,-460.0,0.00022706,2]
[376541660,1754013043964,-2028.54,0.00022706,2]
[376541662,1754013043974,-501.55788379,0.00022721,2]
[376541664,1754013043983,-501.12409677,0.00022721,2]
[376541666,1754013043993,-605.81419545,0.00022721,2]
[376541668,1754013044002,-1000.0,0.00022721,2]
[376541670,1754013044011,-1000.0,0.00022721,2]
[376541672,1754013044020,-436.46617862,0.00022721,2]
[376541674,1754013044029,-1023.39542411,0.00022721,2]
[376541676,1754013044038,-1001.98414961,0.00022721,2]
[376541678,1754013044047,-1001.45234664,0.00022721,2]
[376541680,1754013044056,-1000.0,0.00022721,2]
[376541681,1754013044065,-500.72843976,0.00022721,2]
[376541683,1754013044076,-1000.0,0.00022721,2]
[376541685,1754013044085,-1000.0,0.00022721,2]
[376541687,1754013044094,-1068.82021653,0.00022721,2]
[376541689,1754013044103,-1000.0,0.00022721,2]
[376541691,1754013044112,-460.0,0.00022736,2]
[376541693,1754013044121,-476.39,0.00022736,2]
[376541695,1754013044130,-1038.79,0.00022736,2]
[376541697,1754013044139,-1794.93,0.00022736,2]
[376541699,1754013044149,-460.0,0.00022736,2]
[376541701,1754013044158,-460.0,0.00022736,2]
[376541703,1754013044168,-460.0,0.00022736,2]
[376541705,1754013044177,-702.31,0.00022736,2]
[376541707,1754013044186,-608.56,0.00022736,2]
[376541708,1754013044195,-1381.67,0.00022737,2]
[376541710,1754013044205,-652.77,0.00022737,2]
[376541712,1754013044216,-460.0,0.00022737,2]
[376541714,1754013044225,-659.67,0.00022737,2]
[376541716,1754013044234,-460.0,0.00022738,2]
[376541718,1754013044243,-461.83790396,0.00022738,2]
[376541720,1754013044252,-460.0,0.00022738,2]
[376541722,1754013044261,-460.0,0.00022738,2]
[376541724,1754013044271,-6295.89,0.00022738,2]
[376541726,1754013044282,-1149.39,0.00022738,2]
[376541728,1754013044290,-500.0,0.00022768,2]
[376541730,1754013044300,-460.0,0.00022821,2]
[376541732,1754013044309,-460.0,0.00022821,2]
[376541734,1754013044318,-466.08772533,0.00022821,2]
[376541736,1754013044328,-576.16834054,0.00022821,2]
[376541738,1754013044336,-170.59542991,0.00022821,2]
[376541740,1754013044345,-324.96444709,0.00022821,2]
[376541742,1754013044354,-460.0,0.00022821,2]
[376541744,1754013044363,-460.0,0.00022821,2]
[376541746,1754013044372,-460.0,0.00022821,2]
[376541748,1754013044381,-460.0,0.00022821,2]
[376541750,1754013044390,-223.9,0.00022855,5]
[376541752,1754013044399,-500.0,0.00022942,2]
[376541754,1754013044408,-1604.02,0.00022943,2]
[376541755,1754013044417,-460.0,0.0002295,2]
[376541757,1754013044425,-460.0,0.00022959,2]
[376541758,1754013044434,-542.9,0.00022959,2]
[376541760,1754013044443,-2204.99,0.00022959,2]
[376541762,1754013044453,-2819.63,0.0002296,2]
[376541764,1754013044465,-460.0,0.0002296,2]
[376541766,1754013044474,-523.84,0.0002296,2]
[376541768,1754013044484,-242.39755711,0.0002296,2]
[376541770,1754013044493,-2889.2,0.0002296,2]
[376541772,1754013044505,-460.0,0.0002296,2]
[376541774,1754013044515,-479.84,0.0002296,2]
[376541776,1754013044524,-460.0,0.0002296,2]
[376541777,1754013044533,-460.0,0.0002296,2]
[376541778,1754013044543,-6096.72,0.0002296,2]
[376541779,1754013044553,-647.09,0.0002296,2]
[376541780,1754013044562,-460.0,0.0002296,2]
[376541781,1754013044572,-460.0,0.0002296,2]
[376541782,1754013044582,-565.34,0.0002296,2]
[376541783,1754013044591,-785.43,0.0002296,2]
[376541784,1754013044601,-460.0,0.0002296,2]
[376541785,1754013044610,-460.0,0.0002296,2]
[376541786,1754013044620,-460.0,0.0002296,2]
[376541787,1754013044629,-460.0,0.0002297,2]
[376541788,1754013044638,-460.0,0.0002297,2]
[376541789,1754013044648,-460.0,0.0002297,2]
[376541790,1754013044658,-460.0,0.0002297,2]
[376541791,1754013044667,-460.0,0.0002297,2]
[376541792,1754013044677,-460.0,0.0002297,2]
[376541793,1754013044687,-460.0,0.0002297,2]
[376541794,1754013044696,-460.0,0.0002297,2]
[376541795,1754013044709,-460.0,0.0002297,2]
[376541796,1754013044719,-460.0,0.0002297,2]
[376541797,1754013044728,-460.0,0.0002297,2]
[376541798,1754013044737,-460.0,0.0002297,2]
[376541799,1754013044747,-460.0,0.0002297,2]
[376541800,1754013044756,-460.0,0.0002297,2]
[376541801,1754013044766,-460.0,0.0002297,2]
[376541802,1754013044778,-460.0,0.0002297,2]
[376541803,1754013044787,-460.0,0.0002297,2]
[376541804,1754013044796,-460.0,0.0002297,2]
[376541805,1754013044806,-420.68085534,0.0002297,2]
[376541806,1754013044819,-460.0,0.0002297,2]
[376541807,1754013044829,-500.92,0.0002297,2]
[376541808,1754013044838,-460.0,0.0002297,2]
[376541809,1754013044848,-460.0,0.0002297,2]
[376541810,1754013044859,-526.88,0.0002297,2]
[376541811,1754013044869,-648.08,0.0002297,2]
[376541812,1754013044878,-945.42,0.0002297,2]
[376541813,1754013044887,-460.0,0.0002297,2]
[376541814,1754013044898,-460.0,0.0002297,2]
[376541815,1754013044908,-460.0,0.0002297,2]
[376541816,1754013044918,-460.0,0.0002297,2]
[376541817,1754013044927,-460.0,0.0002297,2]
[376541818,1754013044937,-460.0,0.0002297,2]
[376541819,1754013044946,-639.16,0.0002297,2]
[376541820,1754013044958,-460.0,0.0002297,2]
[376541821,1754013044968,-561.38,0.0002297,2]
[376541822,1754013044977,-460.0,0.0002297,2]
[376541823,1754013044987,-620.29,0.0002297,2]
[376541824,1754013044996,-747.27,0.0002297,2]
[376541825,1754013045008,-460.0,0.0002297,2]
[376541826,1754013045018,-460.0,0.0002297,2]
[376541827,1754013045027,-460.0,0.0002297,2]
[376541828,1754013045037,-460.0,0.0002297,2]
[376541829,1754013045046,-596.1,0.0002297,2]
[376541830,1754013045055,-460.0,0.0002297,2]
[376541831,1754013045065,-557.62,0.0002297,2]
[376541832,1754013045074,-460.0,0.0002297,2]
[376541833,1754013045084,-500.0,0.00022973,2]
[376541834,1754013045093,-502.53333064,0.00022973,2]
[376541835,1754013045102,-502.71536464,0.00022973,2]
[376541836,1754013045113,-500.0,0.00022973,2]
[376541837,1754013045123,-500.0,0.00022973,2]
[376541838,1754013045134,-500.85797379,0.00022973,2]
[376541839,1754013045143,-497.79764768,0.00022973,2]
[376541840,1754013045154,-500.47162812,0.00022973,2]
[376541841,1754013045163,-500.66384901,0.00022973,2]
[376541842,1754013045173,-501.12091425,0.00022973,2]
[376541843,1754013045182,-500.0,0.00022973,2]
[376541844,1754013045191,-501.54139225,0.00022973,2]
[376541845,1754013045200,-501.27862307,0.00022973,2]
[376541846,1754013045210,-501.37224969,0.00022973,2]
[376541847,1754013045220,-321.13955784,0.00022973,2]
[376541848,1754013045230,-500.0,0.00022973,2]
[376541849,1754013045239,-500.0,0.00022973,2]
[376541850,1754013045248,-150.23799434,0.00022973,2]
[376541851,1754013045257,-460.0,0.0002298,2]
[376541852,1754013045267,-2028.54,0.0002298,2]
[376541853,1754013045276,-160.0,0.00023,2]
[376541854,1754013045285,-460.0,0.0002301,2]
[376541855,1754013045294,-476.39,0.0002301,2]
[376541856,1754013045303,-1038.79,0.0002301,2]
[376541857,1754013045313,-1794.93,0.0002301,2]
[376541858,1754013045322,-460.0,0.0002301,2]
[376541859,1754013045331,-460.0,0.0002301,2]
[376541860,1754013045340,-460.0,0.0002301,2]
[376541861,1754013045349,-702.31,0.0002301,2]
[376541862,1754013045358,-608.56,0.0002301,2]
[376541863,1754013045367,-1381.67,0.00023011,2]
[376541864,1754013045377,-652.77,0.00023011,2]
[376541865,1754013045386,-460.0,0.00023011,2]
[376541866,1754013045395,-659.67,0.00023011,2]
[376541867,1754013045404,-500.0,0.00023011,2]
[376541868,1754013045413,-1236.43694151,0.00023011,2]
[376541869,1754013045422,-1236.43694151,0.00023011,2]
[376541870,1754013045431,-270.95261313,0.00023011,2]
[376541871,1754013045441,-1236.43694151,0.00023011,2]
[376541872,1754013045450,-1236.43694151,0.00023011,2]
[376541873,1754013045462,-1236.43694151,0.00023011,2]
[376541874,1754013045471,-1236.43694151,0.00023011,2]
[376541875,1754013045480,-1236.43694151,0.00023011,2]
[376541876,1754013045489,-1236.43694151,0.00023011,2]
[376541877,1754013045497,-1236.43694151,0.00023011,2]
[376541878,1754013045507,-1236.43694151,0.00023011,2]
[376541879,1754013045516,-1236.43694151,0.00023011,2]
[376541880,1754013045525,-1236.43694151,0.00023011,2]
[376541881,1754013045534,-1236.43694151,0.00023011,2]
[376541882,1754013045542,-1236.43694151,0.00023011,2]
[376541883,1754013045554,-1236.43694151,0.00023011,2]
[376541884,1754013045573,-1236.43694151,0.00023011,2]
[376541885,1754013045582,-1236.43694151,0.00023011,2]
[376541886,1754013045591,-460.0,0.00023012,2]
[376541887,1754013045600,-460.0,0.00023012,2]
[376541888,1754013045608,-460.0,0.00023012,2]
[376541889,1754013045617,-6295.89,0.00023012,2]
[376541890,1754013045626,-1149.39,0.00023012,2]
[376541891,1754013045635,-503.44855976,0.00023021,2]
[376541892,1754013045644,-1000.0,0.00023021,2]
[376541893,1754013045652,-1000.0,0.00023021,2]
[376541894,1754013045661,-1000.0,0.00023021,2]
[376541895,1754013045670,-501.98667927,0.00023021,2]
[376541896,1754013045679,-1001.02158805,0.00023021,2]
[376541897,1754013045688,-1000.0,0.00023021,2]
[376541898,1754013045697,-1000.0,0.00023021,2]
[376541899,1754013045706,-503.11342671,0.00023021,2]
[376541900,1754013045716,-1000.0,0.00023021,2]
[376541901,1754013045726,-1063.36709569,0.00023021,2]
[376541902,1754013045735,-1000.0,0.00023021,2]
[376541903,1754013045744,-1000.0,0.00023021,2]
[376541904,1754013045753,-1000.0,0.00023021,2]
[376541905,1754013045763,-1000.0,0.00023021,2]
[376541906,1754013045772,-1000.0,0.00023021,2]
[376541907,1754013045782,-1000.0,0.00023021,2]
[376541908,1754013045798,-501.37895687,0.00023021,2]
[376541909,1754013045902,-1000.0,0.00023021,2]
[376541910,1754013045911,-2137.12727829,0.00023038,2]
[376541911,1754013045920,-460.0,0.00023095,2]
[376541912,1754013045930,-460.0,0.00023095,2]
[376541913,1754013045939,-460.0,0.00023095,2]
[376541914,1754013045948,-460.0,0.00023095,2]
[376541915,1754013045957,-460.0,0.00023095,2]
[376541916,1754013045967,-460.0,0.00023095,2]
[376541917,1754013045977,-592.37,0.00023162,2]
[376541918,1754013045986,-1604.02,0.00023217,2]
[376541920,1754013045996,-460.0,0.00023224,2]
[376541922,1754013046005,-460.0,0.00023233,2]
[376541923,1754013046015,-542.9,0.00023233,2]
[376541924,1754013046024,-2204.99,0.00023233,2]
[376541925,1754013046034,-2819.63,0.00023234,2]
[376541926,1754013046045,-460.0,0.00023234,2]
[376541927,1754013046053,-523.84,0.00023234,2]
[376541928,1754013046063,-2889.2,0.00023234,2]
[376541929,1754013046072,-460.0,0.00023234,2]
[376541930,1754013046081,-479.84,0.00023234,2]
[376541931,1754013046091,-553.3162255,0.00023234,2]
[376541932,1754013046100,-460.0,0.00023234,2]
[376541933,1754013046109,-6096.72,0.00023234,2]
[376541935,1754013046119,-647.09,0.00023234,2]
[376541936,1754013046133,-460.0,0.00023234,2]
[376541937,1754013046142,-460.0,0.00023234,2]
[376541938,1754013046151,-565.34,0.00023234,2]
[376541939,1754013046161,-785.43,0.00023234,2]
[376541940,1754013046170,-460.0,0.00023234,2]
[376541941,1754013046179,-460.0,0.00023234,2]
[376541942,1754013046190,-407.82350276,0.00023234,2]
[376541943,1754013046199,-460.0,0.00023244,2]
[376541944,1754013046208,-460.0,0.00023244,2]
[376541945,1754013046220,-460.0,0.00023244,2]
[376541946,1754013046229,-460.0,0.00023244,2]
[376541947,1754013046238,-460.0,0.00023244,2]
[376541948,1754013046251,-460.0,0.00023244,2]
[376541949,1754013046260,-505.76820796,0.00023244,2]
[376541950,1754013046269,-460.0,0.00023244,2]
[376541951,1754013046278,-460.0,0.00023244,2]
[376541952,1754013046287,-460.0,0.00023244,2]
[376541953,1754013046297,-460.0,0.00023244,2]
[376541954,1754013046308,-460.0,0.00023244,2]
[376541956,1754013046317,-460.0,0.00023244,2]
[376541957,1754013046326,-460.0,0.00023244,2]
[376541958,1754013046335,-460.0,0.00023244,2]
[376541959,1754013046344,-460.0,0.00023244,2]
[376541960,1754013046353,-460.0,0.00023244,2]
[376541961,1754013046362,-460.0,0.00023244,2]
[376541962,1754013046371,-460.0,0.00023244,2]
[376541963,1754013046381,-500.92,0.00023244,2]
[376541964,1754013046390,-460.0,0.00023244,2]
[376541965,1754013046399,-460.0,0.00023244,2]
[376541966,1754013046409,-526.88,0.00023244,2]
[376541967,1754013046418,-648.08,0.00023244,2]
[376541968,1754013046427,-945.42,0.00023244,2]
[376541969,1754013046437,-460.0,0.00023244,2]
[376541970,1754013046446,-460.0,0.00023244,2]
[376541971,1754013046455,-460.0,0.00023244,2]
[376541972,1754013046465,-460.0,0.00023244,2]
[376541973,1754013046474,-460.0,0.00023244,2]
[376541974,1754013046484,-460.0,0.00023244,2]
[376541975,1754013046493,-639.16,0.00023244,2]
[376541976,1754013046503,-460.0,0.00023244,2]
[376541977,1754013046512,-561.38,0.00023244,2]